Cogmind - Beta 9.2 @@@ ROGUE MODE // 2019.11.25 @ 09:21:15 Player: Alexbot Result: Destroyed by 8R-AWN with 8R-AWN's Boregun Performance ------------- Evolutions (0) 0 Regions Visited (3) 600 Robots Destroyed (7) 35 Value Destroyed (84) 84 Prototype IDs (22) 440 Alien Tech Used (0) 0 Bonus (267) 267 TOTAL SCORE: 1426 Bonus ------- Aligned with FarCom 300 Friendly Fire -33 Cogmind --------- Core Integrity 0/250 Matter 290/300 Energy 45/100 System Corruption 0% Temperature Cool (140) Movement Core (250) Ox4 Location -10/Exiles Parts ------- > --- POWER (1) -------- (None) > --- PROPULSION (2) --- (None) > --- UTILITY (2) ------ Small Storage Unit > --- WEAPON (2) ------- Guided Plasma Cannon > --- INVENTORY (6) ---- Light Treads Trap Reconfigurator Deploy-a-Sentry Peak State ------------ > --- POWER ------------ (None) > --- PROPULSION ------- (None) > --- UTILITY ---------- Small Storage Unit > --- WEAPON ----------- Guided Plasma Cannon > --- INVENTORY -------- Light Treads Trap Reconfigurator Deploy-a-Sentry [Rating: 10] Favorites ----------- Power Ion Engine Engine Ion Engine Propulsion Compact Wheel Wheel Compact Wheel Utility Small Storage Unit Storage Small Storage Unit Weapon Light Assault Rifle Energy Gun Medium Laser Energy Cannon Guided Plasma Cannon Ballistic Gun Light Assault Rifle Build | -11 -10 -10 -10 ------- Run | Scr Mat Min Exi Slots Evolved . | . . . . Power . | . . . . Propulsion . | . . . . Utility . | . . . . Weapon . | . . . . Parts Attached 7 | 6 . . 1 Power 1 | 1 . . . Engine 1 | 1 . . . Core . | . . . . Reactor . | . . . . Propulsion 2 | 2 . . . Treads . | . . . . Leg . | . . . . Wheel 2 | 2 . . . Hover . | . . . . Flight . | . . . . Utility 1 | 1 . . . Device . | . . . . Storage 1 | 1 . . . Processor . | . . . . Hackware . | . . . . Protection . | . . . . Artifact . | . . . . Weapon 3 | 2 . . 1 Energy Gun 1 | 1 . . . Energy Cannon 1 | . . . 1 Ballistic Gun 1 | 1 . . . Ballistic Cannon . | . . . . Launcher . | . . . . Special Weapon . | . . . . Impact Weapon . | . . . . Slashing Weapon . | . . . . Piercing Weapon . | . . . . Special Melee Weapon . | . . . . Unidentified Prototypes . | . . . . Parts Lost 5 | . . . 5 Power 1 | . . . 1 Propulsion 2 | . . . 2 Utility . | . . . . Weapon 2 | . . . 2 Highest Loss Streak 5 | . . . 5 Average Slot Usage (%) 82 | . 85 85 78 Engine 13 | . 14 14 12 Wheel 27 | . 28 28 25 Storage 14 | . 14 14 14 Energy Gun 13 | . 14 14 12 Ballistic Gun 13 | . 14 14 12 Naked Turns . | . . . . Heaviest Build 12 | 12 12 12 12 Greatest Support 32 | 32 32 32 32 Greatest Overweight (x) 2 | . . . 2 Average Overweight (x) . | . . . . Largest Inventory Capacity 6 | 6 6 6 6 Average Capacity 5 | 5 6 6 6 Most Carried 6 | 4 4 6 6 Average Carried 5 | 1 4 5 5 Final Capacity 6 | 6 6 6 6 Final Carried 6 | 4 4 6 3 Class Distribution -------------------- 100% | Mutant Dominant Class ---------------- Mutant | -10/Materials Mutant | -10/Mines Mutant | -10/Exiles Resources | -11 -10 -10 -10 ----------- Run | Scr Mat Min Exi Matter Collected 268 | 188 74 6 . Remotely . | . . . . Salvage Created 120 | . 44 63 13 Parts 14 | . 3 11 . Haulers Intercepted . | . . . . Recyclers Shooed . | . . . . Parts Field Recycled . | . . . . Retrieved Matter . | . . . . Parts Self-Destructed . | . . . . Prevented . | . . . . Kills | -11 -10 -10 -10 ------- Run | Scr Mat Min Exi Combat Hostiles Destroyed 7 | . 1 5 1 Guns 6 | . 1 5 . Cannons 1 | . . . 1 Classes Destroyed 3 | . 1 1 1 Swarmer 5 | . . 5 . Grunt 1 | . 1 . . Assembled 1 | . . . 1 Best Kill Streak 4 | . 1 4 1 Combat Bots Only 4 | . 1 4 1 Max Kills in Single Turn 2 | . 1 2 1 Gunslinging 1 | . . 1 . Exploded . | . . . . Melee . | . . . . Uniques/NPCs Destroyed . | . . . . Combat | -11 -10 -10 -10 -------- Run | Scr Mat Min Exi Damage Taken 602 | . 23 48 531 Core 252 | . . 8 244 Absorbed by Shields . | . . . . Core Remaining (%) 100 | 100 . . . Volleys Fired 16 | . 2 6 8 Largest 2 | . 2 2 2 Hottest 120 | . 70 70 120 Shots Fired 26 | . 4 12 10 Gun 24 | . 4 12 8 Cannon 2 | . . . 2 Launcher . | . . . . Special . | . . . . Kinetic 14 | . 2 6 6 Thermal 12 | . 2 6 4 Explosive . | . . . . Electromagnetic . | . . . . Robot Hit Streak 4 | . 2 4 4 Robot Miss Streak 2 | . 1 2 1 Penetration Max . | . . . . Secondary Targets 1 | . . 1 . Max Gunslinging Chain 1 | . . 1 . Shots Hit Robots 19 | . 3 8 8 Core Hits 10 | . 2 6 2 Critical Hits . | . . . . Critical Kills . | . . . . Critical Parts Destroyed . | . . . . Melee Attacks . | . . . . Impact . | . . . . Slashing . | . . . . Piercing . | . . . . Sneak Attacks . | . . . . Combat Hostiles . | . . . . Follow-up Attacks . | . . . . Damage Inflicted 224 | . 41 82 101 Guns 160 | . 41 82 37 Cannons 64 | . . . 64 Explosions . | . . . . Melee . | . . . . Ramming . | . . . . Kinetic 83 | . 16 31 36 Thermal 141 | . 25 51 65 Explosive . | . . . . Electromagnetic . | . . . . Impact . | . . . . Slashing . | . . . . Piercing . | . . . . Highest Corruption . | . . . . Average Corruption . | . . . . Corruption Purged . | . . . . Overload Shots . | . . . . Overflow Damage . | . . . . Projectiles . | . . . . Explosions . | . . . . Melee . | . . . . Knockbacks . | . . . . Impact . | . . . . Kinetic . | . . . . Secondary . | . . . . Self-Inflicted Damage . | . . . . Shots . | . . . . Rammed . | . . . . Targets Rammed . | . . . . Kicked . | . . . . Crushed . | . . . . Highest Temperature 140 | . 72 70 140 Average Temperature 35 | . 40 30 42 Received Heat Transfer 12 | . 12 . . Siege Activations . | . . . . Robots Corrupted . | . . . . Combat Hostiles . | . . . . Parts Fried . | . . . . Impact Corruptions . | . . . . Robots Melted . | . . . . Combat Hostiles . | . . . . Parts Melted . | . . . . Heat Transferred 391 | . 74 148 169 Parts Sabotaged . | . . . . Parts Stolen . | . . . . Parts Stripped . | . . . . Power Chain Reactions . | . . . . Missiles Intercepted . | . . . . Alert | -11 -10 -10 -10 ------- Run | Scr Mat Min Exi Peak Influence 120 | . 28 120 . Average Influence 74 | . 7 98 . Maximum Alert Level . | . . . . Low Security (%) 100 | 100 100 100 . Level 1 . | . . . . Level 2 . | . . . . Level 3 . | . . . . Level 4 . | . . . . Level 5 . | . . . . High Security . | . . . . Max Security . | . . . . Squads Dispatched . | . . . . Investigation . | . . . . Extermination . | . . . . Reinforcement . | . . . . Assault . | . . . . Garrison . | . . . . Intercept . | . . . . Construction Impeded . | . . . . Haulers Reinforced . | . . . . Stealth | -11 -10 -10 -10 --------- Run | Scr Mat Min Exi Distress Signals . | . . . . Communications Jammed . | . . . . Distress Signals . | . . . . Times Spotted 13 | . 1 4 8 Peak Tracking Total 9 | . 1 3 9 Tactical Retreats 1 | . . 1 . Traps | -11 -10 -10 -10 ------- Run | Scr Mat Min Exi Traps Triggered . | . . . . Indirectly . | . . . . Trap Hack Attempts . | . . . . Triggered . | . . . . Disarmed . | . . . . Reprogrammed . | . . . . Reused . | . . . . Traps Extracted . | . . . . Installed . | . . . . Triggered . | . . . . Machines | -11 -10 -10 -10 ---------- Run | Scr Mat Min Exi Machines Disabled . | . . . . Max in Single Turn . | . . . . Machines Sabotaged . | . . . . Garrisons Compromised . | . . . . Overloaded Fab Kills . | . . . . Fab Network Shutdowns . | . . . . Hacking | -11 -10 -10 -10 --------- Run | Scr Mat Min Exi Machines Accessed 2 | . 1 . 1 Terminals 1 | . 1 . . Fabricators . | . . . . Repair Stations . | . . . . Recycling Units . | . . . . Scanalyzers . | . . . . Garrison Access . | . . . . Total Hacks 2 | . 1 . 1 Successful 2 | . 1 . 1 Failed . | . . . . Catastrophic . | . . . . Database Lockouts . | . . . . Manual 2 | . 1 . 1 Terminals 1 | . 1 . . Fabricators . | . . . . Repair Stations . | . . . . Recycling Units . | . . . . Scanalyzers . | . . . . Garrison Access . | . . . . Terminal Hacks 2 | . 1 . 1 Branch Access Points 1 | . 1 . . EX-Prototype ID Bank 1 | . . . 1 Fabricator Hacks . | . . . . Repair Station Hacks . | . . . . Recycling Unit Hacks . | . . . . Scanalyzer . | . . . . Garrison Access Hacks . | . . . . Unauthorized Hacks . | . . . . Terminals . | . . . . Fabricators . | . . . . Repair Stations . | . . . . Recycling Units . | . . . . Scanalyzers . | . . . . Garrison Access . | . . . . Data Cores Recovered . | . . . . Used . | . . . . Hacking Detections 1 | . 1 . . Full Trace Events . | . . . . Feedback Events . | . . . . Feedback Blocked . | . . . . Robot Schematics Acquired . | . . . . Robots Built . | . . . . Matter . | . . . . Time . | . . . . Total Robot Build Rating . | . . . . Part Schematics Acquired . | . . . . Parts Built . | . . . . Matter . | . . . . Time . | . . . . Total Part Build Rating . | . . . . Parts Repaired . | . . . . Time . | . . . . Parts Recycled . | . . . . Recycled Matter . | . . . . Retrieved Matter . | . . . . Retrieved Components . | . . . . Parts Scanalyzed . | . . . . Part Schematics Acquired . | . . . . Parts Damaged . | . . . . Bothacking | -11 -10 -10 -10 ------------ Run | Scr Mat Min Exi Used RIF Installer . | . . . . Robots Hacked . | . . . . Non-combat . | . . . . Combat . | . . . . Robot Hacks Applied . | . . . . Relay Couplers Released . | . . . . Robots Rewired . | . . . . Allies Hacked . | . . . . Hacks Repelled . | . . . . Allies | -11 -10 -10 -10 -------- Run | Scr Mat Min Exi Total Allies . | . . . . Largest Group . | . . . . Highest-Rated Group . | . . . . Highest-Rated Ally . | . . . . Total Orders . | . . . . Ally Attacks 14 | . . . 14 Total Damage 726 | . . . 726 Kills 4 | . . . 4 Allies Corrupted . | . . . . Allies Melted . | . . . . Turrets Deployed 2 | . . . 2 Intel | -11 -10 -10 -10 ------- Run | Scr Mat Min Exi Robot Analysis Total . | . . . . Derelict Logs Recovered . | . . . . Drone Launches . | . . . . Drone Recoveries . | . . . . Exploration | -11 -10 -10 -10 ------------- Run | Scr Mat Min Exi Turns Passed 789 | 46 94 395 254 Spaces Moved 689 | 34 86 347 222 Core 10 | 2 . . 8 Treads . | . . . . Legs . | . . . . Wheels 679 | 32 86 347 214 Hover . | . . . . Flight . | . . . . Fastest Speed 50 | 50 100 100 100 Average Speed 99 | 97 100 100 100 Slowest Speed 150 | 100 100 100 150 Overloaded Moves . | . . . . Propulsion Burnouts . | . . . . Robots Hopped . | . . . . Cave-ins Triggered . | . . . . Exploration Rate (%) 28 | 3 19 49 42 Regions Visited 3 Branch Regions 2 Pre-discovered Areas . | . . . . Known Exits Taken 1 | . 1 . . Unknown Exits Taken 2 | 1 . 1 . Scrap Searched . | . . . . Spaces Dug . | . . . . Terrain Destroyed . | . . . . Melee . | . . . . Projectile . | . . . . AOE . | . . . . Actions | -11 -10 -10 -10 --------- Run | Scr Mat Min Exi Total 765 | 43 90 384 248 Wait 34 | . 3 28 3 Move 686 | 33 85 346 222 Hop . | . . . . Pick Up 12 | 4 . 2 6 Fast Attach 6 | 6 . . . Attach 1 | . . . 1 Detach . | . . . . Swap . | . . . . Drop 8 | . . . 8 Fire 16 | . 2 6 8 Melee . | . . . . Ram . | . . . . Kick . | . . . . Crush . | . . . . Escape Stasis . | . . . . Rewire 2 | . . 2 . Trap . | . . . . Miscellaneous . | . . . . Route ------- -11/Scrapyard -10/Materials -10/Mines -10/Exiles (discovered 1 exit: [*Min]) History --------- Turn | Location | Event 7 | -11/Scrapyard | Discovered new exit (range 16) 47 | -11/Scrapyard | Entered Materials 99 | -10/Materials | Identified exit to Mines 141 | -10/Materials | Entered Mines 142 | -10/Mines | Assembled infested the area 236 | -10/Mines | Received a Rocket Launcher from a helpful Derelict 314 | -10/Mines | Build established: Mutant 375 | -10/Mines | Discovered new exit (range 5) 536 | -10/Mines | Entered Exiles 552 | -10/Exiles | Discovered new exit (range 15) 560 | -10/Exiles | Met 8R-AWN 578 | -10/Exiles | Met EX-HEX 606 | -10/Exiles | Met EX-BIN 617 | -10/Exiles | Aligned with FarCom system 618 | -10/Exiles | Given EX-Vault access code 641 | -10/Exiles | Opened EX-Vault 651 | -10/Exiles | Found Deploy-a-Sentry 653 | -10/Exiles | Found Deploy-a-Sentry 655 | -10/Exiles | Found Deploy-a-Sentry 660 | -10/Exiles | Found Gui. Plasma Cannon 663 | -10/Exiles | Found Trap Reconfigurator 684 | -10/Exiles | Warned to stay clear of 0b10 Research branches 749 | -10/Exiles | DAS Turret deployed 751 | -10/Exiles | DAS Turret deployed 756 | -10/Exiles | Attacked by the Exiles 776 | -10/Exiles | Core integrity fell below 50% 785 | -10/Exiles | Core integrity fell below 20% 790 | -10/Exiles | Destroyed by 8R-AWN with 8R-AWN's Boregun Last Messages --------------- 00771_ as-96706 destroyed. 00775_ Penetrated by HV Slug. 00775_ Com. Wheel destroyed. 00775_ HV Slug penetrates DAS Turret. 00775_ Penetrated by HV Slug. 00775_ HV Slug penetrates DAS Turret. 00775_ DAS Turret suffers critical hit. 00775_ DAS Turret destroyed. 00776_ Ion Engine destroyed. 00780_ Penetrated by HV Slug. 00780_ HV Slug penetrates Wall. 00780_ Penetrated by HV Slug. 00780_ HV Slug penetrates Wall. 00780_ Dropped Gui. Plasma Cannon. 00781_ Acquired Gui. Plasma Cannon. 00784_ Rigged Fission Core explodes. 00784_ Machine disabled. 00786_ as-96398 destroyed. 00787_ HV Slug penetrates Wall. 00787_ Penetrated by HV Slug. Map ----- +----------------------------------------------------+ | ?????????????????????????????????????????????????? | | ?????????????????????????????????????????????????? | | ?????????????????????????????????????????????????? | | ?????????????????????????????????????????????????? | | ?????????????????????????????????????????????????? | | ?????????????????????????????????????????????????? | | ?????????????????????????????????????????????????? | | ?????????????????????????????????????????????????? | | ?????????????????????????????????????????????????? | | ?????????????????????????????????????????????????? | | ?????????????????????????????????????????????????? | | ?????????????????????????????????????? < ????????? | | #???????????????????????????????????? #???????? | | ##??????????????????????????????????? ????????? | | "##?????????????????????????????????# #????????? | | #???????????????????????????????## ##???????? | | ""#???????????????????????????????# #???????? | | "#???????????#####???????????????# #???????? | | "##?????????##" #??????????????## ????????? | | ""###???????#" #?????????????## #?????????? | | """#??????##" ##????????????# #?????????? | | "#????### ###????????### #??????????? | | ##???# % ########## #??????????? | | ##?## # ;# #???????????? | | ### %a % g * ##??????????? | | ##% @ #??????????? | | #### ##?????????? | | ""#?# ""#;;; ###???????? | | #"""##?############# * ###?????? | | ######??????????????##### ##????? | | ##???????????????????????### #????? | | ##??????????????????????????### #????? | | ""#?????????????????????????????### #????? | | "##??????????????????????????????#" ##???? | | """"##???????????????????????????????#### ###?? | | #####???????????????????????????????????# ##? | | ????????????????????????????????????????## ## | | ?????????????????????????????????????????### | | ???????????????????????????????????????????# # | | ???????????????????????????????????????????## ## | | ????????????????????????????????????????????#####? | | ?????????????????????????????????????????????????? | | ?????????????????????????????????????????????????? | | ?????????????????????????????????????????????????? | | ?????????????????????????????????????????????????? | | ?????????????????????????????????????????????????? | | ?????????????????????????????????????????????????? | | ?????????????????????????????????????????????????? | | ?????????????????????????????????????????????????? | | ?????????????????????????????????????????????????? | +----------------------------------------------------+ Best States ------------- Heat Dissipation 25 Energy Generation 10 Energy Capacity 250 Matter Stores 300 Matter Capacity 300 Sight Range 16 Terrain Scan Density 10 Evasion (%) 40 Item Schematics ----------------- None Robot Schematics ------------------ None Fabricated ------------ Nothing Alien Tech Used ----------------- None Achievements -------------- None Challenges ------------ None Game ------ Seed BarrageNeutrinoInverter Manual? 0 Play Time 00:10:11 Cumulative 763.0 hours Start 2019.11.25 @ 08:34:10 End 2019.11.25 @ 09:21:15 Sessions 2 Manual Loads 0 Difficulty Rogue Special Mode None Game No. 212 Rogue 212 Adventurer 0 Explorer 0 Win Type - Total 40 Types 31/0/2/3/2/1/1 Lore% 96 Gallery% 98 Achievement% 94 Wizard Run 0 Options --------- ASCII 0 Keyboard 1 Movement Numpad Keybinds 0 Fullscreen 1 Font 18/SmallcapsGlow Map View 76x50 Tactical HUD 1 Map Filters NONE Filters NONE Steam 1 RUN: 7154c84c-5297-4eea-a1fe-c8444c3326f4